bitfinex/quotes_SOLUSD_20251127
["timestamp","ask_amount","ask_price","bid_price","bid_amount"]
[1764280077356,0.67,142.34,142.31,9.32949087]
[1764280080435,0.67,142.34,142.32,2.30285456]
[1764280081057,0.67,142.34,142.31,9.32949087]
[1764280083253,0.67,142.34,142.32,2.30285456]
[1764280083761,0.67,142.35,142.33,2.30285456]
[1764280084168,0.67,142.35,142.33,9.32875435]
[1764280085036,0.67,142.35,142.33,7.02589979]
[1764280086567,0.67,142.35,142.33,2.30285456]
[1764280086869,0.67,142.35,142.32,2.30285456]
[1764280088666,0.67,142.35,142.32,9.3289231]
[1764280090360,10.12413017,142.37,142.33,2.30285456]
[1764280090567,0.71,142.36,142.34,2.30285456]
[1764280091069,0.71,142.36,142.33,9.32876251]
[1764280091459,0.71,142.36,142.33,2.30285456]
[1764280091662,0.71,142.36,142.32,9.32910747]
[1764280092245,2.30285456,142.33,142.24,0.1]
[1764280092571,9.33075532,142.29,142.24,3.77149315]
[1764280092748,6.06285456,142.28,142.24,3.77149315]
[1764280093167,0.66,142.27,142.24,3.77149315]
[1764280093550,0.66,142.27,142.24,10.80183725]
[1764280096848,0.66,142.27,142.24,13.10469181]
[1764280098368,3.1,142.28,142.27,16.308864]
[1764280098954,3.76,142.28,142.27,16.308864]
[1764280107872,3.1,142.28,142.27,16.308864]
[1764280108277,3.1,142.28,142.27,25.64060729]
[1764280109258,3.1,142.28,142.27,23.33775273]
[1764280109687,10.78839471,142.28,142.24,3.77149315]
[1764280109996,2.30285456,142.25,142.24,0.1]
[1764280110374,2.96285456,142.25,142.24,0.1]
[1764280111170,9.99273153,142.25,142.24,0.1]
[1764280113794,13.09273153,142.25,142.24,0.1]
[1764280124682,14.39264705,142.25,142.24,0.1]
[1764280124882,13.73264705,142.25,142.24,0.1]
[1764280127117,14.45264705,142.25,142.24,0.1]
[1764280128389,13.73264705,142.25,142.24,0.1]
[1764280128590,14.45264705,142.25,142.24,1e-08]
[1764280128808,26.86536205,142.25,142.24,1e-08]
[1764280128991,23.26259197,142.25,142.24,1e-08]
[1764280129600,26.86536205,142.25,142.24,1e-08]
[1764280130004,23.26259197,142.25,142.24,1e-08]
[1764280130610,26.07979096,142.25,142.24,1e-08]
[1764280131018,22.47702088,142.25,142.24,1e-08]
[1764280131219,63.56611748,142.25,142.22,0.1]
[1764280131421,25.11880892,142.22,142.19,0.1]
[1764280131607,25.11880892,142.22,142.14,0.1]
[1764280131608,3.60277008,142.19,142.14,0.1]
[1764280131796,6.70277008,142.18,142.14,0.1]
[1764280132111,7.33277008,142.18,142.14,0.1]
[1764280132821,3.1,142.18,142.14,0.1]
[1764280132992,3.1,142.18,142.16,0.66]
[1764280133310,10.13333802,142.18,142.16,0.66]
[1764280133691,3.1,142.18,142.17,0.76]
[1764280146802,3.1,142.18,142.16,10.63700577]
[1764280147548,4.32277008,142.17,142.15,0.1]
[1764280147708,3.60277008,142.16,142.15,0.1]
[1764280147896,4.32277008,142.16,142.15,0.1]
[1764280148905,11.35709759,142.16,142.15,0.1]
[1764280152613,12.23638852,142.16,142.15,0.1]
[1764280154628,8.63361844,142.16,142.15,0.1]
[1764280154841,11.35709759,142.16,142.15,0.1]
[1764280155130,7.75432751,142.16,142.15,0.1]
[1764280155335,11.35709759,142.16,142.15,0.1]
[1764280158213,10.63709759,142.16,142.15,0.1]
[1764280158623,7.91342371,142.17,142.15,0.77]
[1764280158814,7.03419462,142.17,142.15,0.77]
[1764280160634,10.6369647,142.17,142.15,0.77]
[1764280161250,7.03419462,142.17,142.15,0.77]
[1764280161826,11.00472281,142.18,142.15,0.77]
[1764280162034,0.87922909,142.17,142.15,0.77]
[1764280162230,4.48199917,142.17,142.15,0.77]
[1764280162737,11.51615896,142.17,142.15,0.77]
[1764280168045,4.29277008,142.16,142.15,0.1]
[1764280169524,11.32709759,142.16,142.15,0.1]
[1764280172415,14.42709759,142.16,142.15,0.1]
[1764280175944,3.1,142.16,142.15,0.77]
[1764280176145,10.13432751,142.16,142.15,0.77]
[1764280177544,13.73709759,142.16,142.15,0.1]
[1764280180722,3.1,142.16,142.15,0.76]
[1764280184659,14.40709759,142.16,142.15,0.1]
[1764280184829,24.09633344,142.16,142.15,0.1]
[1764280186767,22.80277216,142.16,142.15,0.1]
[1764280188043,13.99282724,142.16,142.15,0.1]
[1764280188239,13.99282724,142.16,142.15,0.76]
[1764280188240,11.01361844,142.16,142.15,0.76]
[1764280188548,10.13432751,142.16,142.15,0.76]
[1764280190961,3.1,142.16,142.15,0.76]
[1764280194080,3.1,142.16,142.15,0.1]
[1764280194081,22.80277216,142.16,142.15,0.1]
[1764280200492,39.11163616,142.16,142.14,0.1]
[1764280200666,39.11163616,142.16,142.12,0.1]
[1764280200667,8.80994492,142.14,142.12,0.1]
[1764280200992,6.28868533,142.13,142.12,0.1]
[1764280201296,6.95868533,142.13,142.12,0.1]
[1764280202375,6.95868533,142.13,142.05,19.98602419]
[1764280202376,25.11880892,142.1,142.05,3.67716019]
[1764280202669,7.03927917,142.06,142.05,3.67716019]
[1764280202900,10.13927917,142.06,142.05,3.67716019]
[1764280203663,10.13927917,142.06,142.05,4.33716019]
[1764280205882,3.1,142.06,142.05,4.33716019]
[1764280206381,3.1,142.06,142.05,6.64636899]
[1764280206593,3.1,142.06,142.05,4.33716019]
[1764280211785,3.1,142.06,142.05,6.64636899]
[1764280211984,3.1,142.06,142.05,4.33716019]
[1764280212477,13.14848797,142.06,142.05,3.67716019]
[1764280213188,12.44848797,142.06,142.05,3.67716019]
[1764280214389,12.44848797,142.06,142.05,4.38716019]
[1764280214390,10.13927917,142.06,142.05,4.38716019]
[1764280215681,7.91883922,142.07,142.05,4.38716019]
[1764280215875,3.1,142.06,142.05,3.67716019]
[1764280216377,3.1,142.06,142.05,4.38716019]
[1764280218575,13.14848797,142.06,142.05,3.67716019]
[1764280218777,10.13927917,142.06,142.05,4.38716019]
[1764280219486,7.03927917,142.06,142.05,4.38716019]
[1764280219685,10.13927917,142.06,142.05,4.38716019]
[1764280220992,10.13927917,142.06,142.05,3.67716019]
[1764280221204,12.44848797,142.06,142.05,3.67716019]
[1764280221699,10.13927917,142.06,142.05,3.67716019]
[1764280224402,3.1,142.06,142.05,4.38716019]
[1764280224581,3.1,142.06,142.05,6.69636899]
[1764280227297,3.1,142.06,142.05,4.38716019]
[1764280227593,3.1,142.06,142.05,6.69636899]
[1764280233611,3.1,142.06,142.05,4.38716019]
[1764280234719,10.13927917,142.06,142.05,4.38716019]
[1764280234898,10.13927917,142.06,142.05,3.67716019]
[1764280235099,10.83927917,142.06,142.05,3.67716019]
[1764280235302,10.13927917,142.06,142.05,4.38716019]
[1764280235496,10.13927917,142.06,142.05,3.67716019]
[1764280236709,11.01918906,142.06,142.05,3.67716019]
[1764280236912,11.71918906,142.06,142.05,3.67716019]
[1764280237298,11.01918906,142.06,142.05,3.67716019]
[1764280237698,10.13927917,142.06,142.05,3.67716019]
[1764280238908,10.13927917,142.06,142.05,4.38716019]
[1764280239124,10.13927917,142.06,142.05,3.67716019]
[1764280239809,3.1,142.06,142.05,4.38716019]
[1764280240011,3.1,142.06,142.05,6.69636899]
[1764280242002,3.1,142.06,142.05,4.38716019]
[1764280246128,3.1,142.06,142.05,3.67716019]
[1764280246337,11.73918906,142.06,142.05,3.67716019]
[1764280248520,15.35126433,142.06,142.05,3.67716019]
[1764280251329,24.16120925,142.06,142.05,3.67716019]
[1764280251513,8.80994492,142.02,142.0,0.1]
[1764280251718,6.71207527,142.01,142.0,0.1]
[1764280251926,7.43207527,142.01,142.0,0.1]
[1764280252633,23.28377781,142.01,142.0,0.1]
[1764280252814,19.67170254,142.01,142.0,0.1]
[1764280253021,23.28377781,142.01,142.0,0.1]
[1764280253218,23.28377781,142.01,142.0,1e-08]
[1764280259241,14.47383289,142.01,142.0,1e-08]
[1764280259455,23.28377781,142.01,142.0,1e-08]
[1764280262729,44.45003878,142.01,142.0,1e-08]
[1764280268449,43.73003878,142.01,142.0,1e-08]
[1764280268655,19.67170254,142.01,142.0,1e-08]
[1764280268845,23.28377781,142.01,142.0,1e-08]
[1764280271032,44.44854552,142.01,142.0,1e-08]
[1764280286746,43.72854552,142.01,142.0,1e-08]
[1764280287073,43.72854552,142.01,142.0,0.71000001]
[1764280287263,22.56377781,142.01,142.0,0.71000001]
[1764280287569,22.56377781,142.01,142.0,1e-08]
[1764280288153,60.75740952,142.01,142.0,1e-08]
[1764280290371,60.03740952,142.01,142.0,1e-08]
[1764280290554,60.75740952,142.01,142.0,1e-08]
[1764280291684,60.03740952,142.01,142.0,1e-08]
[1764280291976,44.44854552,142.01,142.0,1e-08]
[1764280294668,65.55854552,142.01,142.0,1e-08]
[1764280295063,44.44854552,142.01,142.0,1e-08]
[1764280300978,65.55854552,142.01,142.0,1e-08]
[1764280301163,8.80994492,141.97,141.95,48.31267218]
[1764280301482,16.40254991,141.96,141.95,48.31267218]
[1764280301710,16.40254991,141.96,141.95,49.01267218]
[1764280302660,23.44678772,141.96,141.95,48.31267218]
[1764280303182,23.44678772,141.96,141.95,49.01267218]
[1764280304287,11.02476753,141.96,141.95,49.01267218]
[1764280310191,7.92433341,141.97,141.95,49.01267218]
[1764280310371,7.92433341,141.97,141.96,0.7]
[1764280312378,7.04386571,141.97,141.96,0.7]
[1764280312872,7.92260962,142.0,141.96,3.0142752]
[1764280313182,7.9220629,142.01,141.97,2.3142752]
[1764280313384,7.9220629,142.01,141.97,0.7]
[1764280313588,7.9220629,142.01,141.95,48.31267218]
[1764280313589,10.2363381,142.01,141.98,0.7]
[1764280316475,27.84073215,142.01,141.98,0.7]
[1764280316681,5.4142752,142.0,141.98,0.7]
[1764280316995,0.88034368,141.99,141.98,0.7]
[1764280317663,7.92309316,141.99,141.98,0.7]
[1764280320193,10.23736836,141.99,141.97,0.7]
[1764280320397,5.4142752,141.98,141.96,0.7]
[1764280320581,0.8804677,141.97,141.96,0.7]
[1764280320986,3.98040569,141.98,141.96,0.7]
[1764280322581,7.04374163,141.97,141.96,0.7]
[1764280323290,3.98040569,141.98,141.96,0.7]
[1764280323481,11.02272931,142.0,141.97,2.3142752]
[1764280323886,11.02272931,142.0,141.98,0.7]
[1764280324584,21.58224273,142.03,141.99,2.3142752]
[1764280324792,7.04157553,142.02,141.99,2.3142752]
[1764280324996,7.04157553,142.02,142.0,0.7]
[1764280326105,6.2944949,142.01,141.98,0.7]
[1764280326309,2.3142752,142.0,141.95,50.62694738]
[1764280326508,6.2944949,142.01,141.99,0.7]
[1764280326725,9.35652872,142.0,141.96,0.7]
[1764280327020,27.84244421,142.0,141.97,0.7]
[1764280329526,7.92253521,142.0,141.97,0.7]
[1764280339936,8.60253521,142.0,141.97,0.7]
[1764280340141,7.92253521,142.0,141.97,0.7]
[1764280346034,8.60253521,142.0,141.97,0.7]
[1764280346235,7.92253521,142.0,141.97,0.7]
[1764280348847,7.92253521,142.0,141.97,3.0142752]
[1764280348848,7.04225352,142.0,141.97,3.0142752]
[1764280349031,10.14189263,142.01,141.98,2.3142752]
[1764280349234,10.14189263,142.01,141.98,3.0142752]
[1764280349433,10.14189263,142.01,141.99,0.7]
[1764280350935,3.1,142.01,141.99,3.0142752]
[1764280351331,3.1,142.01,142.0,0.7]
[1764280351740,7.04147825,142.02,142.0,0.7]
[1764280366668,7.70147825,142.02,141.99,0.66]
[1764280366867,7.04147825,142.02,141.99,0.66]
[1764280372164,7.70147825,142.02,141.99,0.66]
[1764280373473,7.04147825,142.02,141.99,0.66]
[1764280389084,0.66,142.07,142.01,3.61363361]
[1764280389292,0.87984796,142.07,142.03,3.61363361]
[1764280389681,0.87984796,142.07,142.04,0.66]
[1764280390381,7.91896696,142.07,142.04,0.66]
[1764280391466,0.71,142.06,142.03,0.69]
[1764280391661,0.71,142.06,142.04,0.69]
[1764280391867,0.71,142.06,142.03,0.69]
[1764280392890,11.36303916,142.06,142.03,0.69]
[1764280393592,7.74940555,142.06,142.03,0.69]
[1764280398088,0.87984796,142.07,142.03,11.34413936]
[1764280398268,3.97978603,142.08,142.03,11.34413936]
[1764280398595,3.97978603,142.08,142.04,4.30363361]
[1764280398967,3.97978603,142.08,142.05,0.69]
[1764280399390,3.97978603,142.08,142.05,4.30363361]
[1764280399588,10.13829045,142.08,142.05,4.30363361]
[1764280399782,10.13829045,142.08,142.06,0.69]
[1764280400888,3.1,142.08,142.06,0.69]
[1764280401083,10.13835142,142.08,142.06,0.69]
[1764280402276,0.87972411,142.09,142.06,4.30363361]
[1764280402477,0.87972411,142.09,142.06,11.34287141]
[1764280402692,0.87972411,142.09,142.07,0.69]
[1764280402891,3.1,142.1,142.07,4.30363361]
[1764280403200,10.13730753,142.1,142.07,4.30363361]
[1764280403588,0.71,142.09,142.06,11.34287141]
[1764280403784,10.13730753,142.1,142.07,0.69]
[1764280403981,10.84730753,142.1,142.07,0.69]
[1764280408076,3.1,142.1,142.07,11.34228675]
[1764280408599,3.1,142.1,142.08,0.69]
[1764280411478,3.81,142.1,142.07,7.03865314]
[1764280411683,3.81,142.1,142.08,0.69]
[1764280412578,10.84739479,142.1,142.08,0.69]
[1764280413903,3.1,142.1,142.08,0.69]
[1764280414095,3.1,142.1,142.08,4.30363361]
[1764280414315,3.1,142.1,142.08,0.69]
[1764280415602,10.13738846,142.1,142.08,0.69]
[1764280415810,0.71,142.09,142.06,0.69]
[1764280415988,7.74784378,142.09,142.06,0.69]
[1764280417887,7.74784378,142.09,142.06,7.72926007]
[1764280419298,7.03784378,142.09,142.07,0.69]
[1764280419496,7.74784378,142.09,142.07,0.69]
[1764280420604,7.03784378,142.09,142.07,0.69]
[1764280420810,11.68710218,142.1,142.07,0.69]
[1764280422114,11.01710218,142.1,142.07,0.69]
[1764280422614,8.58537225,142.13,142.09,3.61363361]
[1764280422913,8.58537225,142.13,142.1,0.72]
[1764280424012,7.91537225,142.13,142.1,0.72]
[1764280424200,7.70655538,142.12,142.08,0.72]
[1764280425822,7.70655538,142.12,142.08,7.75817881]
[1764280426006,7.70655538,142.12,142.09,0.72]
[1764280426518,7.70655538,142.12,142.05,21.14388413]
[1764280426519,8.80994492,142.09,142.05,21.14388413]
[1764280426702,3.61363361,142.06,142.03,0.72]
[1764280427102,4.28363361,142.06,142.03,0.72]
[1764280427319,0.67,142.06,142.03,0.72]
[1764280427618,0.67,142.06,142.03,7.76075466]
[1764280429896,0.67,142.06,142.04,0.72]
[1764280432017,7.7091537,142.07,142.04,0.72]
[1764280435419,11.01819212,142.08,142.04,7.76003392]
[1764280435602,3.1,142.08,142.05,2.31133575]
[1764280435802,3.1,142.08,142.05,3.03133575]
[1764280436007,3.1,142.08,142.06,0.72]
[1764280438905,10.80744066,142.1,142.06,0.72]
[1764280439820,1.54953841,142.12,142.07,2.31133575]
[1764280440009,8.58621733,142.12,142.08,0.72]
[1764280440822,7.91621733,142.12,142.08,0.72]
[1764280441028,0.67,142.11,142.08,0.72]
[1764280441721,2.98133575,142.11,142.06,25.65927549]
[1764280441922,7.03729767,142.1,142.06,26.37927549]
[1764280442113,7.70729767,142.1,142.07,0.72]
[1764280443721,0.67,142.09,142.05,10.07091692]
[1764280444120,0.67,142.09,142.06,0.72]
[1764280445124,7.70791618,142.09,142.06,0.72]
[1764280446112,7.03791618,142.09,142.06,0.72]
[1764280446431,7.03791618,142.09,142.06,3.03133575]
[1764280446931,7.03791618,142.09,142.07,0.72]
[1764280464119,7.03791618,142.09,142.04,16.308864]
[1764280464120,3.02133575,142.08,142.04,16.308864]
[1764280464317,2.31133575,142.06,142.02,0.66]
[1764280464538,6.12133575,142.07,142.02,0.66]
[1764280464751,0.71,142.06,142.02,7.70123669]
[1764280465246,0.71,142.06,142.03,0.66]
[1764280465440,3.1,142.07,142.04,2.31133575]
[1764280465821,3.1,142.07,142.04,2.97133575]
[1764280466038,3.81,142.07,142.04,2.97133575]
[1764280466221,10.84882433,142.07,142.04,2.97133575]
[1764280468050,10.84882433,142.07,142.04,0.66]
[1764280471054,3.1,142.07,142.04,0.66]
[1764280472155,10.13891984,142.07,142.04,0.66]
[1764280472363,0.71,142.06,142.04,0.66]
[1764280472536,0.71,142.06,142.02,2.97133575]
[1764280472851,0.71,142.06,142.03,0.66]
[1764280473026,7.74940108,142.06,142.03,0.66]
[1764280476251,7.74940108,142.06,142.03,7.70073562]
[1764280476454,7.03940108,142.06,142.03,7.70073562]
[1764280476636,7.03940108,142.06,142.04,0.66]
[1764280484268,11.01873229,142.07,142.04,0.66]
[1764280484468,11.69873229,142.07,142.04,0.66]
[1764280484765,3.78,142.07,142.04,7.70009495]
[1764280485167,3.78,142.07,142.05,0.66]
[1764280488084,0.87978603,142.08,142.06,2.31133575]
[1764280488255,17.5909526,142.12,142.07,2.31133575]
[1764280488256,3.9796003,142.11,142.07,2.31133575]
[1764280488456,11.69658549,142.11,142.07,9.34976214]
[1764280488674,11.69658549,142.11,142.08,0.66]
[1764280489178,3.1,142.11,142.08,0.66]
[1764280490676,3.1,142.11,142.08,7.69821605]
[1764280491079,3.1,142.11,142.09,0.66]
[1764280491450,3.1,142.11,142.08,7.03821605]
[1764280491653,3.78,142.11,142.08,7.69821605]
[1764280493679,3.78,142.11,142.08,7.03821605]
[1764280493680,0.68,142.1,142.08,7.03821605]
[1764280493897,10.13680436,142.11,142.08,7.69821605]
[1764280494184,10.81680436,142.11,142.08,7.69821605]
[1764280495391,3.78,142.11,142.08,7.69821605]
[1764280498088,10.81688111,142.11,142.08,0.66]
[1764280503290,10.13688111,142.11,142.08,0.66]
[1764280503767,0.68,142.1,142.06,0.66]
[1764280504277,0.68,142.1,142.06,4.26911389]
[1764280504680,0.68,142.1,142.07,0.66]
[1764280506794,7.03779294,142.09,142.07,0.66]
[1764280511996,7.71752747,142.1,142.07,4.26911389]
[1764280512798,7.71752747,142.1,142.07,0.66]
[1764280524484,3.60911389,142.08,142.03,4.3469435]
[1764280524710,3.1,142.07,142.04,0.67]
[1764280524884,3.81,142.07,142.04,0.67]
[1764280525089,3.1,142.07,142.04,0.67]
[1764280525505,3.81,142.07,142.04,0.67]
[1764280526006,3.1,142.07,142.04,0.67]
[1764280526210,3.1,142.07,142.04,4.27911389]
[1764280526508,3.1,142.07,142.04,11.31926191]
[1764280526683,19.91797789,142.1,142.06,3.60911389]
[1764280526887,3.1,142.1,142.07,3.60911389]
[1764280527084,3.1,142.1,142.08,0.67]
[1764280529790,3.1,142.1,142.08,7.70828458]
[1764280530197,3.1,142.1,142.08,0.67]
[1764280530413,3.1,142.1,142.09,0.67]
[1764280538024,3.1,142.1,142.08,0.67]
[1764280539016,4.01,142.16,142.09,3.60911389]
[1764280539313,4.01,142.16,142.12,3.60911389]
[1764280539691,4.01,142.16,142.13,0.67]
[1764280540324,3.3,142.16,142.13,4.27911389]
[1764280540818,3.3,142.16,142.13,10.64481849]
[1764280541120,3.3,142.16,142.14,0.72]
[1764280541426,3.3,142.16,142.14,4.32911389]
[1764280541606,3.3,142.16,142.14,3.60911389]
[1764280541793,3.3,142.16,142.13,11.36481849]
[1764280542122,3.3,142.16,142.14,4.32911389]
[1764280543022,3.3,142.16,142.14,11.36443118]
[1764280554632,3.3,142.16,142.14,10.0625656]
[1764280566946,0.2,142.16,142.14,10.0625656]
[1764280569640,0.2,142.16,142.14,26.3714296]
[1764280570119,0.2,142.16,142.14,29.18882702]
[1764280570637,0.2,142.16,142.14,19.84626142]
[1764280570935,0.2,142.16,142.1,53.22317334]
[1764280570936,7.93488645,142.15,142.11,2.30724831]
[1764280571315,0.69,142.14,142.11,2.30724831]
[1764280571728,0.69,142.14,142.11,9.34400036]
[1764280572131,7.72535155,142.14,142.09,2.30724831]
[1764280572527,3.79,142.13,142.09,2.30724831]
[1764280572945,0.69,142.12,142.09,2.30724831]
[1764280573311,0.69,142.12,142.08,10.00548741]
[1764280573742,0.69,142.12,142.09,2.30724831]
[1764280574125,0.69,142.12,142.1,2.30724831]
[1764280578554,0.69,142.12,142.09,9.3450293]
[1764280578750,0.69,142.12,142.09,10.0050293]
[1764280579345,7.72641258,142.12,142.09,9.34503415]
[1764280579545,7.72641258,142.12,142.09,7.03778584]
[1764280579753,0.69,142.11,142.09,9.34503415]
[1764280580459,0.69,142.11,142.09,10.00503415]
[1764280584752,2.30724831,142.1,142.02,0.66]
[1764280584942,2.30724831,142.07,142.02,0.66]
[1764280585151,9.49994492,142.09,142.02,2.96724831]
[1764280585328,3.1,142.06,142.02,2.96724831]
[1764280585533,5.40724831,142.06,142.01,3.67769247]
[1764280585731,0.69,142.05,142.01,4.33769247]
[1764280586753,3.1,142.06,142.04,2.30724831]
[1764280586926,3.1,142.06,142.04,2.96724831]
[1764280589226,3.1,142.06,142.04,2.30724831]
[1764280589433,3.1,142.06,142.05,2.96724831]
[1764280591236,0.69,142.08,142.05,2.96724831]
[1764280591438,7.72838263,142.08,142.03,2.96724831]
[1764280591639,10.03563094,142.08,142.03,19.27611231]
[1764280591836,0.69,142.07,142.03,18.61611231]
[1764280592047,0.69,142.07,142.04,0.66]
[1764280592654,7.72897635,142.07,142.04,0.66]
[1764280594483,7.72897635,142.07,142.04,2.96724831]
[1764280594850,7.03897635,142.07,142.04,2.96724831]
[1764280595153,7.72897635,142.07,142.04,2.96724831]
[1764280597256,0.69,142.06,142.04,2.96724831]
[1764280597839,11.70770741,142.09,142.05,2.96724831]
[1764280598035,0.69,142.08,142.05,2.96724831]
[1764280598241,0.69,142.08,142.05,2.30724831]
[1764280599239,0.69,142.08,142.04,7.70003798]
[1764280599438,0.69,142.08,142.05,2.30724831]
[1764280599642,7.72842741,142.08,142.04,7.70003798]
[1764280600264,0.69,142.07,142.04,10.00728629]
[1764280600838,0.69,142.07,142.01,3.67769247]
[1764280601163,2.30724831,142.05,142.0,0.66]
[1764280601343,3.1,142.04,142.0,0.66]
[1764280601538,3.76,142.04,141.99,2.30724831]
[1764280601740,0.66,142.03,142.0,0.66]
[1764280603164,0.66,142.03,141.99,10.00990463]
[1764280604071,0.66,142.03,142.0,0.66]
[1764280604269,0.66,142.03,141.99,2.30724831]
[1764280604560,0.66,142.03,142.0,0.66]
[1764280604762,7.70079392,142.03,142.0,0.66]
[1764280605257,3.1,142.04,142.01,2.30724831]
[1764280605258,10.14039016,142.04,142.01,2.30724831]
[1764280605443,10.80039016,142.04,142.01,2.30724831]
[1764280605642,10.80039016,142.04,142.01,2.96724831]
[1764280608270,10.80039016,142.04,142.01,0.66]
[1764280613859,0.66,142.03,142.01,0.66]
[1764280614253,10.14039016,142.04,142.01,0.66]
[1764280614254,10.80039016,142.04,142.01,0.66]
[1764280614477,3.1,142.04,142.02,2.30724831]
[1764280614774,3.1,142.04,142.03,3.61136528]
[1764280615068,3.1,142.07,142.03,3.61136528]
[1764280615272,3.1,142.07,142.05,3.61136528]
[1764280615650,3.1,142.07,142.05,4.27136528]
[1764280616359,3.1,142.07,142.05,0.66]
[1764280616561,3.76,142.07,142.05,0.66]
[1764280618770,3.1,142.07,142.05,0.66]
[1764280619077,3.1,142.07,142.05,11.31105239]
[1764280619974,3.1,142.07,142.06,0.66]
[1764280621172,3.1,142.07,142.04,3.61136528]
[1764280621387,3.1,142.07,142.05,0.66]
[1764280621551,3.1,142.07,142.06,3.61136528]
[1764280621751,11.67669939,142.11,142.06,3.61136528]
[1764280621972,0.66,142.1,142.07,4.27136528]
[1764280622174,7.69753363,142.1,142.07,4.27136528]
[1764280623176,0.66,142.09,142.02,17.60253697]
[1764280623368,3.1,142.08,142.04,0.66]
[1764280623558,3.1,142.08,142.04,4.27136528]
[1764280623857,3.76,142.08,142.04,4.27136528]
[1764280624171,10.79830035,142.08,142.05,0.66]
[1764280624548,0.66,142.07,142.04,11.31141886]
[1764280625275,10.13830035,142.08,142.05,0.66]
[1764280625572,10.79830035,142.08,142.05,4.27136528]
[1764280627675,3.1,142.08,142.06,4.27136528]
[1764280629748,3.76,142.08,142.06,4.27136528]
[1764280631479,3.1,142.08,142.06,4.27136528]
[1764280632059,3.78,142.08,142.06,4.27136528]
[1764280634381,3.1,142.08,142.06,4.27136528]
[1764280634764,3.1,142.08,142.07,4.33136528]
[1764280635092,4.65953841,142.12,142.07,4.33136528]
[1764280635289,11.69588326,142.12,142.08,0.72]
[1764280635459,11.69588326,142.12,142.09,3.61136528]
[1764280635659,11.69588326,142.12,142.09,4.33136528]
[1764280636076,11.01588326,142.12,142.09,4.33136528]
[1764280636282,4.65953841,142.12,142.09,4.33136528]
[1764280636867,3.1,142.12,142.1,4.33136528]
[1764280637789,0.2,142.15,142.11,4.33136528]
[1764280637963,3.1,142.14,142.13,3.61136528]
[1764280638158,3.1,142.14,142.12,4.33136528]
[1764280639503,3.1,142.14,142.12,3.61136528]
[1764280639504,3.78,142.14,142.12,3.61136528]
[1764280639784,3.78,142.14,142.12,4.33136528]
[1764280640289,3.1,142.14,142.12,4.33136528]
[1764280640591,3.1,142.14,142.12,11.36762084]
[1764280641966,3.1,142.14,142.13,3.61136528]
[1764280642572,3.1,142.14,142.13,11.36717756]
[1764280644382,3.1,142.14,142.13,4.33136528]
[1764280645684,3.1,142.14,142.13,3.61136528]
[1764280654588,3.1,142.14,142.13,4.33136528]
[1764280655290,3.1,142.14,142.13,11.36717756]
[1764280656280,3.1,142.14,142.13,4.33136528]
[1764280662079,3.1,142.14,142.13,3.61136528]
[1764280663506,3.77,142.14,142.12,10.64751819]
[1764280663801,3.77,142.14,142.12,11.32751819]
[1764280664114,3.77,142.14,142.12,4.29136528]
[1764280664483,0.67,142.13,142.1,7.7171172]
[1764280664706,0.67,142.13,142.11,3.61136528]
[1764280665109,0.67,142.13,142.11,4.29136528]
[1764280665416,3.77,142.14,142.12,3.61136528]
[1764280665886,0.67,142.13,142.12,3.61136528]
[1764280666482,10.80545484,142.14,142.12,3.61136528]
[1764280666676,10.13545484,142.14,142.12,3.61136528]
[1764280666882,0.67,142.13,142.12,3.61136528]
[1764280667197,10.13545484,142.14,142.12,3.61136528]
[1764280667391,10.80545484,142.14,142.12,3.61136528]
[1764280669414,3.77,142.14,142.12,3.61136528]
[1764280671510,3.77,142.14,142.13,3.61136528]
[1764280671712,0.2,142.15,142.13,3.61136528]